fUSD/lending_fUSD_20240122
["ID","MTS","AMOUNT","RATE_DAILY","PERIOD"]
[312530224,1705943437993,-789.6789965,0.00022995,2]
[312530225,1705943438002,-279.32271034,0.00022995,2]
[312530226,1705943438012,-1041.25749626,0.00022995,2]
[312530227,1705943438022,-148.93759879,0.00022996,2]
[312530228,1705943438035,-7.84931557,0.00022996,2]
[312530229,1705943438045,-164.10212241,0.00022996,2]
[312530230,1705943438055,-91.30349846,0.00022996,2]
[312530231,1705943438072,-223.84681675,0.00022996,2]
[312530232,1705943438081,-159.68214617,0.00022996,2]
[312530233,1705943438091,-420.97409666,0.00022996,2]
[312530234,1705943438100,-193.27168961,0.00022996,2]
[312530235,1705943438110,-11.2625716,0.00022996,2]
[312530236,1705943438138,-236.23353627,0.00022996,2]
[312530237,1705943438151,-415.21672887,0.00022996,2]
[312530238,1705943438161,-525.9420381,0.00022996,2]
[312530240,1705943438170,-315.12139691,0.00022996,2]
[312530242,1705943438179,-158.84571897,0.00022996,2]
[312530244,1705943438188,-247.85570535,0.00022996,2]
[312530246,1705943438197,-158.20515269,0.00022996,2]
[312530248,1705943438206,-347.03225315,0.00022996,2]
[312530250,1705943438216,-1795.92693723,0.00022996,2]
[312530252,1705943438225,-858.48139715,0.00022996,2]
[312530254,1705943438237,-483.08256668,0.00022996,2]
[312530256,1705943438246,-1547.44343332,0.00022996,2]
[312530258,1705943438257,-2005.097984,0.00022996,2]
[312530261,1705943438270,-2840.39685999,0.00022996,2]
[312530264,1705943438290,-978367.28923361,0.00022996,2]
[312530266,1705943438299,-402.85205731,0.00022997,2]
[312530268,1705943438309,-293.71794742,0.00022997,2]
[312530270,1705943438318,-165.45840668,0.00022997,2]
[312530272,1705943438327,-189.85627843,0.00022997,2]
[312530274,1705943438336,-155.38053658,0.00022997,2]
[312530276,1705943438346,-155.68435278,0.00022997,2]
[312530278,1705943438355,-482.64447851,0.00022997,2]
[312530280,1705943438364,-33387.39114312,0.00022997,2]
[312530282,1705943438373,-196.87781686,0.00022997,2]
[312530284,1705943438382,-155.0,0.00022997,2]
[312530286,1705943438391,-156.18814208,0.00022997,2]
[312530288,1705943438401,-499.9164478,0.00022997,2]
[312530290,1705943438410,-445.02367319,0.00022997,2]
[312530292,1705943438419,-5099.41444541,0.00022997,2]
[312530294,1705943438428,-207.66013193,0.00022997,2]
[312530296,1705943438437,-166.19975346,0.00022997,2]
[312530298,1705943438446,-2781.52303549,0.00022997,2]
[312530300,1705943438455,-400.71715327,0.00022997,2]
[312530302,1705943438466,-203.12390135,0.00022997,2]
[312530304,1705943438475,-158.49958175,0.00022997,2]
[312530306,1705943438485,-31323.9656689,0.00022997,2]
[312530308,1705943438495,-5366.38073521,0.00022997,2]
[312530310,1705943438505,-318.525335,0.00022997,2]
[312530312,1705943438514,-3912.77273116,0.00022997,2]
[312530314,1705943438524,-1000.0,0.00022997,2]
[312530316,1705943438533,-1411.29741843,0.00022997,2]
[312530318,1705943438543,-4489.60407291,0.00022997,2]
[312530320,1705943438551,-2140.25984846,0.00022997,2]
[312530322,1705943438560,-179.85459461,0.00022997,2]
[312530324,1705943438570,-293888.55222937,0.00022997,2]
[312530326,1705943438579,-3628.6989227,0.00022998,2]
[312530328,1705943438588,-286.26169434,0.00022998,2]
[312530330,1705943438598,-1099.52122903,0.00022998,2]
[312530332,1705943438606,-248.85404506,0.00022998,2]
[312530334,1705943438615,-199.35913811,0.00022998,2]
[312530336,1705943438624,-1192.50419747,0.00022998,2]
[312530338,1705943438633,-2431.45050997,0.00022998,2]
[312530340,1705943438643,-276.25525913,0.00022998,2]
[312530343,1705943438656,-1859.90512481,0.00022998,2]
[312530345,1705943438664,-385.34444625,0.00022998,2]
[312530347,1705943438673,-2436.02086532,0.00022998,2]
[312530349,1705943438683,-156.30183788,0.00022998,2]
[312530351,1705943438691,-180.90411052,0.00022998,2]
[312530353,1705943438700,-156.23164632,0.00022998,2]
[312530355,1705943438710,-472.78671026,0.00022998,2]
[312530357,1705943438720,-417.6160908,0.00022998,2]
[312530359,1705943438730,-156.93148293,0.00022998,2]
[312530361,1705943438739,-155.55451817,0.00022998,2]
[312530363,1705943438749,-367.68403236,0.00022998,2]
[312530365,1705943438758,-157.17504674,0.00022998,2]
[312530367,1705943438768,-176.01932869,0.00022998,2]
[312530369,1705943438777,-155.0,0.00022998,2]
[312530371,1705943438786,-225.21653009,0.00022998,2]
[312530373,1705943438796,-242.15573671,0.00022998,2]
[312530375,1705943438805,-287.92668321,0.00022998,2]
[312530377,1705943438814,-1050.01826432,0.00022998,2]
[312530379,1705943438824,-227.75696778,0.00022998,2]
[312530381,1705943438834,-400.0,0.00022998,2]
[312530383,1705943438846,-156.45682699,0.00022998,2]
[312530385,1705943438855,-185.71472234,0.00022998,2]
[312530387,1705943438864,-650.04373601,0.00022998,2]
[312530389,1705943438874,-2468.40786347,0.00022998,2]
[312530391,1705943438885,-176.56661785,0.00022998,2]
[312530393,1705943438894,-559.01998297,0.00022998,2]
[312530396,1705943438903,-156.05286893,0.00022998,2]
[312530398,1705943438913,-294.01251633,0.00022998,2]
[312530399,1705943438923,-235.69028679,0.00022998,2]
[312530402,1705943438933,-7133.88963967,0.00022998,2]
[312530404,1705943438942,-293.5356737,0.00022998,2]
[312530406,1705943438952,-400.05263761,0.00022998,2]
[312530408,1705943438962,-173.51625013,0.00022998,2]
[312530410,1705943438972,-224.00135986,0.00022998,2]
[312530412,1705943438981,-155.43398215,0.00022998,2]
[312530413,1705943438991,-1564.18265998,0.00022998,2]
[312530415,1705943439000,-161.56475026,0.00022998,2]
[312530418,1705943439009,-194.05908279,0.00022998,2]
[312530420,1705943439020,-264.54174673,0.00022998,2]
[312530422,1705943439029,-290.95628078,0.00022998,2]
[312530424,1705943439038,-193.66512698,0.00022998,2]
[312530426,1705943439048,-162.11132826,0.00022998,2]
[312530428,1705943439057,-155.0,0.00022998,2]
[312530430,1705943439067,-155.0,0.00022998,2]
[312530432,1705943439076,-1963.6226589,0.00022998,2]
[312530434,1705943439085,-180.80090215,0.00022998,2]
[312530436,1705943439095,-290.66276011,0.00022998,2]
[312530438,1705943439104,-390.94311427,0.00022998,2]
[312530439,1705943439114,-264.08008738,0.00022998,2]
[312530440,1705943439123,-361.55615053,0.00022998,2]
[312530441,1705943439133,-272.33856688,0.00022998,2]
[312530442,1705943439142,-3472.45233989,0.00022998,2]
[312530443,1705943439151,-155.0,0.00022998,2]
[312530444,1705943439161,-301.44763826,0.00022999,2]
[312530445,1705943439171,-1762.41086594,0.00022999,2]
[312530446,1705943439180,-281.27567579,0.00022999,2]
[312530447,1705943439190,-155.0,0.00022999,2]
[312530448,1705943439200,-6312.94545483,0.00022999,2]
[312530449,1705943439209,-177.291089,0.00022999,2]
[312530450,1705943439218,-207.05527583,0.00022999,2]
[312530452,1705943439228,-505.86448172,0.00022999,2]
[312530454,1705943439237,-39898.0633966,0.00022999,2]
[312530456,1705943439246,-184.50075243,0.00022999,2]
[312530458,1705943439255,-150.0,0.00022999,2]
[312530460,1705943439265,-184.50075243,0.00022999,2]
[312530462,1705943439274,-150.0,0.00022999,2]
[312530464,1705943439283,-184.50075243,0.00022999,2]
[312530466,1705943439292,-150.0,0.00022999,2]
[312530468,1705943439302,-184.50075243,0.00022999,2]
[312530470,1705943439311,-150.0,0.00022999,2]
[312530473,1705943439321,-184.50075243,0.00022999,2]
[312530476,1705943439342,-150.0,0.00022999,2]
[312530478,1705943439351,-184.50075243,0.00022999,2]
[312530480,1705943439361,-150.0,0.00022999,2]
[312530482,1705943439370,-184.50075243,0.00022999,2]
[312530484,1705943439380,-150.0,0.00022999,2]
[312530486,1705943439390,-184.50075243,0.00022999,2]
[312530488,1705943439399,-184.50075243,0.00022999,2]
[312530490,1705943439408,-150.0,0.00022999,2]
[312530492,1705943439418,-184.50075243,0.00022999,2]
[312530494,1705943439427,-150.0,0.00022999,2]
[312530496,1705943439436,-184.50075243,0.00022999,2]
[312530498,1705943439446,-150.0,0.00022999,2]
[312530500,1705943439455,-184.50075243,0.00022999,2]
[312530502,1705943439464,-150.0,0.00022999,2]
[312530504,1705943439473,-184.50075243,0.00022999,2]
[312530506,1705943439483,-150.0,0.00022999,2]
[312530508,1705943439493,-184.50075243,0.00022999,2]
[312530510,1705943439502,-150.0,0.00022999,2]
[312530512,1705943439511,-184.50075243,0.00022999,2]
[312530514,1705943439523,-150.0,0.00022999,2]
[312530516,1705943439532,-184.50075243,0.00022999,2]
[312530518,1705943439542,-150.0,0.00022999,2]
[312530520,1705943439551,-150.0,0.00022999,2]
[312530522,1705943439562,-1255.48407725,0.00023,2]
[312530524,1705943439571,-12066955.84583726,0.00023,2]
[312530527,1705943439586,-5496.62668027,0.00023,2]
[312530529,1705943439597,-4211.26911229,0.00023,2]
[312530533,1705943439626,-146.88048974,0.00023,2]
[312530612,1705943440352,-150.0,0.00022,2]
[312530614,1705943440361,-232.19045124,0.00022902,2]
[312530616,1705943440371,-430.30554876,0.00023,2]
[312530618,1705943440388,-3931.41599998,0.00023,2]
[312530679,1705943441105,-5379.00844352,0.00023,2]
[312530680,1705943441116,-810.16,0.00023,2]
[312530681,1705943441128,-17192.32722682,0.00023,2]
[312530682,1705943441150,-896.30156002,0.00023,2]
[312530683,1705943441161,-4110.71738,0.00023,2]
[312530684,1705943441172,-2890.29356339,0.00023,2]
[312530685,1705943441223,-64.09800785,0.00023,2]
[312530686,1705943441236,-285.88104731,0.00023,2]
[312530687,1705943441248,-500.0,0.00023,2]
[312530700,1705943442912,-150.0,0.00022548,2]
[312530701,1705943442922,-168.40345575,0.00023,2]
[312530702,1705943442975,-343227.22840566,0.00023,2]
[312530703,1705943442986,-4975.64419999,0.00023,2]
[312530704,1705943442998,-933.85858345,0.00023,2]
[312530705,1705943443051,-26660.01483151,0.00023,2]
[312530741,1705943446537,-2611.85918177,0.00023,2]
[312530742,1705943446666,8457.25633301,0.00020696,5]
[312530743,1705943446877,-0.32426514,0.00023,2]
[312530744,1705943446888,-330.61,0.00023,2]
[312530745,1705943446899,-21086.50000003,0.00023,2]
[312530746,1705943446910,-386.7855967,0.00023,2]
[312530747,1705943492300,155.72027097,0.00020612,2]
[312530748,1705943493261,155.4056809,0.00020612,2]
[312530749,1705943493979,186.44835477,0.00020383,2]
[312530758,1705943502413,185.18,0.00020942,2]
[312530760,1705943549390,360.39878748,0.00018321,2]
[312530762,1705943562238,508.4844915,0.00020382,2]
[312530775,1705943771639,250.0,0.00020989,2]
[312530779,1705943827238,302.29,0.00020904,2]
[312530780,1705943842447,211.92,0.00020834,2]
[312530788,1705943899870,500.0,0.00020769,2]
[312530791,1705943950624,214.7,0.00018908,2]
[312530792,1705943951588,2705.0,0.00020825,2]
[312530793,1705944018888,500.0,0.00020866,2]
[312530794,1705944067799,155.27,0.00020833,2]
[312530795,1705944074176,1852.42,0.00020837,2]
[312530796,1705944091326,275.06,0.00020821,2]
[312530798,1705944093528,464.4,0.00020928,2]
[312530799,1705944110299,483.9596,0.00020921,2]
[312530800,1705944110341,3862.48921522,0.00021001,2]
[312530801,1705944111148,4491.27761482,0.00021001,2]
[312530802,1705944111696,232.19045124,0.00021001,2]
[312530803,1705944112741,387.26634072,0.00021001,2]
[312530804,1705944113832,172.02741418,0.00021001,2]
[312530805,1705944115923,371.50432901,0.00021001,2]
[312530806,1705944119669,1051.17652227,0.00021001,2]
[312530807,1705944126903,400.87297161,0.00021001,2]
[312530808,1705944129156,1418.26758153,0.00021001,2]
[312530809,1705944134289,1133.0222,0.0002092,14]
[312530810,1705944145917,1813.37519997,0.00021001,2]
[312530811,1705944146034,524.21526262,0.00021001,2]
[312530812,1705944148009,1204.52083617,0.00021001,2]
[312530813,1705944150071,155.0,0.00021001,2]
[312530814,1705944153783,2000.0,0.00020928,2]
[312530815,1705944173230,610.44787622,0.00021001,2]
[312530816,1705944189219,610.44787622,0.00021001,2]
[312530817,1705944200925,1014.0,0.00021001,2]
[312530818,1705944217320,161.90565138,0.00021001,2]
[312530819,1705944259497,592.8712812,0.00021001,2]
[312530820,1705944260991,300.0,0.00020912,2]
[312530821,1705944268659,50510.78554689,0.00021001,2]
[312530822,1705944273416,2648.5308,0.00020902,2]
[312530823,1705944282704,1051.17652227,0.00021001,2]
[312530824,1705944292737,18948.40984176,0.00021001,2]
[312530825,1705944312656,12558.69342296,0.00021001,2]
[312530827,1705944375082,24077.89289131,0.00020896,2]
[312530828,1705944401346,395.2475208,0.00021001,2]
[312530829,1705944433689,214.2,0.00019059,2]
[312530831,1705944492122,171.63682695,0.00020904,2]
[312530832,1705944527485,300.0,0.00020902,2]
[312530834,1705944542971,333.22,0.00020953,2]
[312530835,1705944544327,329.372934,0.00021001,2]
[312530836,1705944548123,-150.00000004,0.00021002,2]
[312530837,1705944569104,486.58,0.0002089,2]
[312530838,1705944604370,200.0,0.00020983,2]
[312530839,1705944621060,152.3,0.0002097,2]
[312530854,1705944632077,-443.83597126,0.00021002,2]
[312530855,1705944632088,-333.92943009,0.00021002,2]
[312530856,1705944632101,-2201.09409029,0.00021002,2]
[312530857,1705944632111,-629.13,0.00021016,2]
[312530858,1705944632120,-300.0,0.00021022,2]
[312530859,1705944632130,-150.0,0.00021022,2]
[312530860,1705944632139,-2678.27590971,0.00021023,2]
[312530861,1705944632150,-770.6744694,0.00021023,2]
[312530862,1705944632166,-250.0,0.00021023,2]
[312530863,1705944632177,-2235.0842992,0.00021023,2]
[312530864,1705944632189,-27463.66379303,0.00021023,2]
[312530865,1705944632197,-31797.6944387,0.00021024,2]
[312530866,1705944632211,-1455.84,0.00021025,2]
[312530867,1705944632221,-250.0,0.00021027,2]
[312530868,1705944632231,-1392.46828846,0.00021032,2]
[312530869,1705944632241,-23890.0,0.00021033,2]
[312530870,1705944632250,-499.99,0.00021034,2]
[312530871,1705944632261,-685.5,0.00021034,2]
[312530872,1705944632270,-150.99,0.00021056,2]
[312530873,1705944632280,-509.57,0.00021064,2]
[312530874,1705944632290,-171.60329861,0.00021238,2]
[312530875,1705944632301,-3308.75824519,0.00021239,2]
[312530876,1705944632310,-214.2,0.00021322,2]
[312530877,1705944632319,-159.76,0.0002136,2]
[312530878,1705944632328,-171.63682692,0.00021403,2]
[312530879,1705944632337,-159.76,0.00021419,2]
[312530880,1705944632346,-159.76,0.00021478,2]
[312530881,1705944632355,-159.76,0.00021536,2]
[312530882,1705944632364,-159.76,0.00021595,2]
[312530883,1705944632372,-594.07,0.00021644,2]
[312530884,1705944632382,-159.76,0.00021653,2]
[312530885,1705944632391,-159.76,0.00021712,2]
[312530886,1705944632400,-159.76,0.0002177,2]
[312530887,1705944632408,-159.76,0.00021829,2]
[312530888,1705944632417,-6383.48246038,0.00021886,2]
[312530889,1705944632426,-159.76,0.00021888,2]
[312530890,1705944632435,-171.63682692,0.00021902,2]
[312530891,1705944632444,-350.59885641,0.00021903,2]
[312530892,1705944632453,-250.0,0.00021918,2]
[312530893,1705944632462,-2348.5,0.00021918,3]
[312530894,1705944632471,-1973.66,0.00021918,2]
[312530895,1705944632480,-159.76,0.00021946,2]
[312530896,1705944632489,-150.0,0.00022,2]
[312530897,1705944632498,-159.76,0.00022005,2]
[312530898,1705944632507,-159.76,0.00022063,2]
[312530899,1705944632516,-159.76,0.00022122,2]
[312530901,1705944632525,-159.76,0.0002218,2]
[312530903,1705944632534,-159.76,0.00022239,2]
[312530905,1705944632543,-158.97,0.00022244,2]
[312530906,1705944632552,-159.76,0.00022298,2]
[312530908,1705944632561,-159.76,0.00022356,2]
[312530910,1705944632571,-171.63682692,0.00022401,2]
[312530912,1705944632581,-159.76,0.00022415,2]
[312530914,1705944632590,-594.07,0.00022445,2]
[312530916,1705944632600,-159.76,0.00022473,2]
[312530918,1705944632610,-472.69042978,0.00022573,2]
[312530920,1705944632619,-14861.35267416,0.00022574,2]
[312530923,1705944632631,-2933.4711,0.00022574,2]
[312530925,1705944632643,-2365.25864744,0.00022574,2]
[312530927,1705944632666,-445.52381825,0.00022574,2]
[312530928,1705944632678,-8403.36000001,0.00022574,2]
[312530929,1705944632689,-968.45269273,0.00022574,2]
[312530930,1705944632703,-10452.50000001,0.00022574,2]
[312530931,1705944632781,-498.696,0.00022574,2]
[312530932,1705944632799,-587.5153374,0.00022574,2]
[312530933,1705944632810,-479.70601001,0.00022574,2]
[312530934,1705944632822,-1603.04621236,0.00022574,2]
[312530935,1705944632860,-662.815,0.00022574,2]
[312530936,1705944633243,-3552.83400763,0.00022574,2]
[312530937,1705944633254,-3659.9084,0.00022574,2]
[312530938,1705944633263,-1455.84,0.00022669,2]
[312530939,1705944633273,-89528.4668,0.0002267,2]
[312530940,1705944633283,-1050.06959001,0.00022672,2]
[312530941,1705944633293,-2500.0,0.000227,2]
[312530942,1705944633302,-800.0,0.00022767,2]
[312530943,1705944633311,-24034.82225073,0.0002277,2]
[312530944,1705944633321,-1137.05646443,0.00022798,2]
[312530945,1705944633330,-2285.58105929,0.00022798,2]
[312530946,1705944633340,-155.97756423,0.00022798,2]
[312530947,1705944633349,-2021.25442929,0.00022798,2]
[312530948,1705944633358,-1892.71929668,0.00022798,2]
[312530949,1705944633368,-1763.39934784,0.00022798,2]
[312530950,1705944633378,-298.82580935,0.00022798,2]
[312530951,1705944633387,-384.8456086,0.00022798,2]
[312530952,1705944633397,-231.42613239,0.00022798,2]
[312530953,1705944633407,-392.32417861,0.00022798,2]
[312530954,1705944633416,-390.90216645,0.00022798,2]
[312530955,1705944633426,-608.07641091,0.00022798,2]
[312530956,1705944633435,-1270.0730526,0.00022798,2]
[312530957,1705944633444,-803.69880258,0.00022798,2]
[312530958,1705944633453,-478.47235996,0.00022798,2]
[312530959,1705944633462,-257.65754827,0.00022798,2]
[312530960,1705944633471,-1041.8215,0.00022799,2]
[312530961,1705944633482,-287.10165572,0.00022799,2]
[312530962,1705944633491,-1620.9293,0.000228,2]
[312530963,1705944633500,-1613.3391,0.000228,2]
[312530964,1705944633510,-60838.463,0.000228,2]
[312530965,1705944633519,-1000.0,0.00022803,2]
[312530966,1705944633528,-168.12312928,0.00022804,2]
[312530967,1705944633538,-737.144272,0.00022898,2]
[312530968,1705944633547,-1000.0,0.00022899,2]
[312530969,1705944633557,-5000.0,0.00022899,2]
[312530970,1705944633566,-153.37666056,0.000229,2]
[312530971,1705944633575,-1000.0,0.000229,2]
[312530972,1705944633585,-2978.69104172,0.000229,2]
[312530973,1705944633595,-2978.69104172,0.000229,2]
[312530974,1705944633604,-2744.23660575,0.000229,2]
[312530975,1705944633616,-234.45443597,0.000229,2]
[312530976,1705944633625,-1267.8299361,0.000229,2]
[312530977,1705944633638,-1710.86110562,0.000229,2]
[312530978,1705944633647,-225.3882179,0.000229,2]
[312530979,1705944633657,-171.63682692,0.000229,2]
[312530980,1705944633666,-190.97652873,0.00022901,2]
[312530981,1705944633675,-2086.20839324,0.00022901,2]
[312530982,1705944633684,-155.0,0.00022901,2]
[312530983,1705944633694,-230.6388667,0.00022901,2]
[312530984,1705944633703,-418.28828988,0.00022901,2]
[312530985,1705944633713,-288.03524596,0.00022901,2]
[312530986,1705944633723,-1099.52122903,0.00022902,2]
[312530987,1705944633736,-2306.97835772,0.00022902,2]
[312530988,1705944633746,-155.0,0.00022902,2]
[312530989,1705944633756,-378.40239568,0.00022902,2]
[312530990,1705944633765,-1859.90512481,0.00022902,2]
[312530991,1705944633774,-4242.39899865,0.00022902,2]
[312530992,1705944633783,-156.30183788,0.00022902,2]
[312530993,1705944633792,-1974.24317658,0.00022902,2]
[312530994,1705944633804,-807.27985891,0.00022902,2]
[312530995,1705944633814,-1042.29691372,0.00022902,2]
[312530996,1705944633823,-155.0,0.00022902,2]
[312530997,1705944633833,-1235.00607333,0.00022903,2]
[312530998,1705944633842,-7229.21715404,0.00022903,2]
[312530999,1705944633854,-5765.55513152,0.00022903,2]
[312531000,1705944633881,-2784.51649125,0.00022903,2]
[312531005,1705944637987,-650.53838168,0.00022903,2]
[312531006,1705944638052,-2853.91612875,0.00022903,2]
[312531007,1705944638063,-715.99054,0.00022903,2]
[312531008,1705944638075,-505.4108,0.00022903,2]
[312531009,1705944638132,-131844.71347221,0.00022903,2]
[312531010,1705944638144,-529.82133345,0.00022903,2]
[312531011,1705944638292,-8269.68746399,0.00022903,2]
[312531012,1705944638304,-5300.58217764,0.00022903,2]
[312531013,1705944638328,-868.95680594,0.00022903,2]
[312531014,1705944638341,-543.68032293,0.00022903,2]
[312531015,1705944638353,-10499.16321223,0.00022903,2]
[312531016,1705944638374,-642.5311458,0.00022903,2]
[312531017,1705944638386,-2002.55425,0.00022903,2]
[312531074,1705944639048,-0.1605704,0.00022903,2]
[312531233,1705944640497,-215137.28895011,0.00022903,2]
[312531287,1705944641126,-498774.89856587,0.00022903,2]
[312531288,1705944641136,-180.90411052,0.00022998,2]
[312531289,1705944641145,-156.23164632,0.00022998,2]
[312531290,1705944641155,-380.5930096,0.00022998,2]
[312531291,1705944641165,-318.8409256,0.00022998,2]
[312531292,1705944641174,-218.05929931,0.00022998,2]
[312531293,1705944641184,-164.10212241,0.00022998,2]
[312531294,1705944641194,-200.0,0.00022998,2]
[312531295,1705944641203,-200.0,0.00022998,2]
[312531296,1705944641214,-200.0,0.00022998,2]
[312531297,1705944641434,-163.0,0.00022998,2]
[312531298,1705944641443,-19601.66055239,0.00022998,2]
[312531299,1705944641453,-209.8771193,0.00022999,2]
[312531300,1705944641463,-155.84109243,0.00022999,2]
[312531301,1705944641472,-168.15569429,0.00022999,2]
[312531302,1705944641482,-209.26071767,0.00022999,2]
[312531303,1705944641491,-162.54625844,0.00022999,2]
[312531304,1705944641500,-155.0,0.00022999,2]
[312531305,1705944641509,-248.85404506,0.00022999,2]
[312531306,1705944641518,-336.7179586,0.00022999,2]
[312531307,1705944641527,-276.25525913,0.00022999,2]
[312531308,1705944641537,-1040.72114049,0.00022999,2]
[312531309,1705944641546,-264.59547339,0.00022999,2]
[312531310,1705944641555,-216.95009248,0.00022999,2]
[312531311,1705944641564,-199.35913811,0.00022999,2]
[312531312,1705944641573,-3628.6989227,0.00022999,2]
[312531313,1705944641583,-1192.50419747,0.00022999,2]
[312531314,1705944641592,-2431.45050997,0.00022999,2]
[312531316,1705944641601,-150.0,0.00022999,2]
[312531317,1705944641611,-150.0,0.00022999,2]
[312531318,1705944641620,-150.0,0.00022999,2]
[312531320,1705944641629,-150.0,0.00022999,2]
[312531321,1705944641638,-150.0,0.00022999,2]
[312531322,1705944641647,-150.0,0.00022999,2]
[312531323,1705944641657,-4688448.08779819,0.00023,2]
[312531324,1705944641667,-2000.0,0.00023,2]
[312531325,1705944641676,-200.0,0.00023,2]
[312531326,1705944641686,-2000.0,0.00023,2]
[312531327,1705944641695,-200.0,0.00023,2]
[312531328,1705944641705,-2000.0,0.00023,2]
[312531329,1705944641716,-200.0,0.00023,2]
[312531330,1705944641726,-2000.0,0.00023,2]
[312531331,1705944641736,-200.0,0.00023,2]
[312531332,1705944641745,-3083.66523063,0.00023004,2]
[312531333,1705944641755,-163.88,0.0002304,2]
[312531334,1705944641764,-3136.8735785,0.00023066,2]
[312531335,1705944641774,-856.82950201,0.00023082,2]
[312531336,1705944641784,-206.0,0.00023124,2]
[312531337,1705944641793,-2000.0,0.0002323,2]
[312531338,1705944641803,-200.0,0.0002323,2]
[312531339,1705944641813,-2000.0,0.0002323,2]
[312531340,1705944641822,-200.0,0.0002323,2]
[312531341,1705944641832,-2000.0,0.0002323,2]
[312531342,1705944641841,-200.0,0.0002323,2]
[312531343,1705944641850,-2000.0,0.0002323,2]
[312531344,1705944641860,-200.0,0.0002323,2]
[312531345,1705944641869,-594.07,0.00023245,2]
[312531346,1705944641878,-2000.0,0.00023462,2]
[312531347,1705944641888,-200.0,0.00023462,2]
[312531348,1705944641897,-2000.0,0.00023462,2]
[312531349,1705944641907,-200.0,0.00023462,2]
[312531350,1705944641917,-2000.0,0.00023462,2]
[312531351,1705944641928,-200.0,0.00023462,2]
[312531352,1705944641938,-200.0,0.00023462,2]
[312531353,1705944641949,-161.35,0.00023491,2]
[312531354,1705944641960,-214.2,0.00023586,2]
[312531355,1705944641973,-629.13,0.00023643,2]
[312531356,1705944641987,-2000.0,0.00023697,2]
[312531357,1705944641998,-200.0,0.00023697,2]
[312531358,1705944642009,-2000.0,0.00023697,2]
[312531359,1705944642020,-200.0,0.00023697,2]
[312531360,1705944642031,-2000.0,0.00023697,2]
[312531361,1705944642042,-200.0,0.00023697,2]
[312531362,1705944642052,-200.0,0.00023697,2]
[312531363,1705944642063,-2000.0,0.00023934,2]
[312531364,1705944642077,-200.0,0.00023934,2]
[312531365,1705944642089,-2000.0,0.00023934,2]
[312531366,1705944642099,-200.0,0.00023934,2]
[312531367,1705944642110,-2000.0,0.00023934,2]
[312531368,1705944642120,-200.0,0.00023934,2]
[312531369,1705944642132,-201.27157051,0.00024,2]
[312531370,1705944642142,-163.88,0.00024018,2]
[312531371,1705944642151,-594.07,0.00024046,2]
[312531372,1705944642165,-161.35,0.00024075,2]
[312531373,1705944642176,-1455.84,0.00024313,2]
[312531374,1705944642187,-250.0,0.00024658,2]
[312531375,1705944642198,-161.35,0.00024659,2]
[312531376,1705944642210,-594.07,0.00024847,2]
[312531377,1705944642220,-163.88,0.00024995,2]
[312531378,1705944642236,-200.0,0.00025,2]
[312531379,1705944642247,-350.0,0.00025,3]
[312531380,1705944642257,-161.35,0.00025243,2]
[312531381,1705944642268,-153.37666056,0.00025561,2]
[312531382,1705944642281,-167.66,0.00025796,2]
[312531383,1705944642291,-161.35,0.00025828,2]
[312531384,1705944642302,-214.2,0.0002585,2]
[312531385,1705944642313,-1455.84,0.00025957,2]
[312531386,1705944642324,-163.88,0.00025973,2]
[312531387,1705944642334,-629.13,0.0002627,2]
[312531388,1705944642344,-158.97,0.00026428,2]
[312531389,1705944642354,-2566.99,0.00026575,2]
[312531390,1705944642364,-718.78,0.00026575,2]
[312531391,1705944642374,-239.59,0.00026575,2]
[312531392,1705944642384,-163.88,0.00026951,2]
[312531393,1705944642394,-400.0,0.00027,3]
[312531394,1705944642403,-1807.0,0.000272,2]
[312531395,1705944642413,-150.0,0.00027397,2]
[312531396,1705944642422,-155.0,0.00027397,2]